[Event "Live Chess"]
[Site "Chess.com"]
[Date "2011.01.02"]
[Round "-"]
[White "Bagamon"]
[Black "hipposcottimus"]
[Result "0-1"]
[CurrentPosition "4r2k/1p4pp/5q2/8/8/7Q/PP6/K2r4 w - -"]
[Timezone "UTC"]
[ECO "D00"]
[ECOUrl "https://www.chess.com/openings/Queens-Pawn-Opening-1...d5-2.e3-c5"]
[UTCDate "2011.01.02"]
[UTCTime "21:40:00"]
[WhiteElo "1267"]
[BlackElo "1378"]
[TimeControl "480"]
[Termination "hipposcottimus won by checkmate"]
[StartTime "21:40:00"]
[EndDate "2011.01.02"]
[EndTime "21:55:54"]
[Link "https://www.chess.com/game/live/83583365"]

1. d4 {[%clk 0:08:00]} 1... d5 {[%clk 0:08:00]} 2. e3 {[%clk 0:07:57.1]} 2... c5 {[%clk 0:07:58.1]} 3. Bd2 {[%clk 0:07:50.8]} 3... cxd4 {[%clk 0:07:55.7]} 4. exd4 {[%clk 0:07:49]} 4... Nc6 {[%clk 0:07:53.3]} 5. c4 {[%clk 0:07:46.7]} 5... Nxd4 {[%clk 0:07:51.4]} 6. Be3 {[%clk 0:07:23.1]} 6... Nf5 {[%clk 0:07:44.8]} 7. cxd5 {[%clk 0:07:18.4]} 7... e6 {[%clk 0:07:33]} 8. Nc3 {[%clk 0:07:10.1]} 8... Bb4 {[%clk 0:07:28.3]} 9. Bc4 {[%clk 0:06:58.8]} 9... Nge7 {[%clk 0:07:21.3]} 10. Qa4+ {[%clk 0:06:56.7]} 10... Bd7 {[%clk 0:07:18.1]} 11. Qxb4 {[%clk 0:06:50.9]} 11... O-O {[%clk 0:07:16.3]} 12. dxe6 {[%clk 0:06:48.9]} 12... fxe6 {[%clk 0:07:04.7]} 13. Bc5 {[%clk 0:06:29.6]} 13... a5 {[%clk 0:06:57.7]} 14. Qb3 {[%clk 0:06:19.5]} 14... a4 {[%clk 0:06:37.1]} 15. Bxe6+ {[%clk 0:06:15.6]} 15... Kh8 {[%clk 0:06:26.9]} 16. Qc4 {[%clk 0:06:01.1]} 16... Bc6 {[%clk 0:05:58.7]} 17. Qg4 {[%clk 0:05:47.3]} 17... Nh6 {[%clk 0:05:37.8]} 18. Bxe7 {[%clk 0:04:49.8]} 18... Qxe7 {[%clk 0:05:32.2]} 19. Qh3 {[%clk 0:04:29.3]} 19... Bd7 {[%clk 0:05:25.7]} 20. Nge2 {[%clk 0:03:52.1]} 20... Bxe6 {[%clk 0:05:23.8]} 21. Qe3 {[%clk 0:03:39.2]} 21... Ng4 {[%clk 0:04:59]} 22. Qd4 {[%clk 0:03:06.7]} 22... Rxf2 {[%clk 0:04:47.4]} 23. h3 {[%clk 0:02:57.2]} 23... Rd8 {[%clk 0:04:22.7]} 24. Qb6 {[%clk 0:02:11.3]} 24... Rxg2 {[%clk 0:03:34]} 25. hxg4 {[%clk 0:02:08.9]} 25... Bxg4 {[%clk 0:03:30.6]} 26. Qb5 {[%clk 0:01:03.2]} 26... Re8 {[%clk 0:03:21.8]} 27. O-O-O {[%clk 0:00:38]} 27... Bxe2 {[%clk 0:02:54.6]} 28. Nxe2 {[%clk 0:00:34.7]} 28... Rxe2 {[%clk 0:02:52.4]} 29. Qxa4 {[%clk 0:00:33.5]} 29... Qc5+ {[%clk 0:02:40.5]} 30. Kb1 {[%clk 0:00:27.7]} 30... Qf5+ {[%clk 0:01:14.9]} 31. Ka1 {[%clk 0:00:25.7]} 31... Qf6 {[%clk 0:01:02]} 32. Qb3 {[%clk 0:00:17.3]} 32... Rg2 {[%clk 0:00:43.4]} 33. Rhg1 {[%clk 0:00:14.3]} 33... Rh2 {[%clk 0:00:25.9]} 34. Rh1 {[%clk 0:00:10.8]} 34... Rf2 {[%clk 0:00:24.4]} 35. Rhf1 {[%clk 0:00:06]} 35... Rxf1 {[%clk 0:00:23.4]} 36. Qh3 {[%clk 0:00:03]} 36... Rxd1# {[%clk 0:00:21.5]} 0-1

[Event "Live Chess"]
[Site "Chess.com"]
[Date "2011.01.02"]
[Round "-"]
[White "hipposcottimus"]
[Black "deeppurple2010"]
[Result "0-1"]
[CurrentPosition "6k1/1p4pp/p7/1b1p4/P7/1P6/3QpPPP/q5K1 w - -"]
[Timezone "UTC"]
[ECO "B20"]
[ECOUrl "https://www.chess.com/openings/Sicilian-Defense"]
[UTCDate "2011.01.02"]
[UTCTime "21:25:12"]
[WhiteElo "1372"]
[BlackElo "1322"]
[TimeControl "600"]
[Termination "deeppurple2010 won on time"]
[StartTime "21:25:12"]
[EndDate "2011.01.02"]
[EndTime "21:36:25"]
[Link "https://www.chess.com/game/live/83578027"]

1. e4 {[%clk 0:10:00]} 1... c5 {[%clk 0:10:00]} 2. Bb5 {[%clk 0:09:55.8]} 2... a6 {[%clk 0:09:53.7]} 3. Be2 {[%clk 0:09:55.3]} 3... d5 {[%clk 0:09:47.1]} 4. e5 {[%clk 0:09:53.5]} 4... Nc6 {[%clk 0:09:40.7]} 5. Nf3 {[%clk 0:09:51.8]} 5... f6 {[%clk 0:09:30.9]} 6. d4 {[%clk 0:09:45.5]} 6... cxd4 {[%clk 0:09:02.2]} 7. exf6 {[%clk 0:09:39.3]} 7... Nxf6 {[%clk 0:08:58]} 8. Nxd4 {[%clk 0:09:38.4]} 8... e5 {[%clk 0:08:45.7]} 9. Nb3 {[%clk 0:09:06.9]} 9... Bc5 {[%clk 0:08:33.7]} 10. Nxc5 {[%clk 0:09:03.1]} 10... Qa5+ {[%clk 0:08:28.8]} 11. Bd2 {[%clk 0:08:33.4]} 11... Qxc5 {[%clk 0:08:24.5]} 12. O-O {[%clk 0:08:33.1]} 12... O-O {[%clk 0:08:18.2]} 13. Qe1 {[%clk 0:08:15.6]} 13... Nd4 {[%clk 0:08:06.6]} 14. Bd3 {[%clk 0:08:03.2]} 14... e4 {[%clk 0:08:03.6]} 15. Bb4 {[%clk 0:08:00.3]} 15... Qb6 {[%clk 0:07:41.3]} 16. c3 {[%clk 0:07:19.1]} 16... exd3 {[%clk 0:07:35.4]} 17. cxd4 {[%clk 0:07:15.6]} 17... Qxd4 {[%clk 0:07:32.5]} 18. Bxf8 {[%clk 0:07:12.4]} 18... Kxf8 {[%clk 0:07:29.6]} 19. Qd2 {[%clk 0:06:56.1]} 19... Ne4 {[%clk 0:07:27.4]} 20. Qf4+ {[%clk 0:06:48.2]} 20... Kg8 {[%clk 0:07:20.2]} 21. Nd2 {[%clk 0:06:46.5]} 21... Bd7 {[%clk 0:06:11.2]} 22. Nxe4 {[%clk 0:05:56.9]} 22... Rf8 {[%clk 0:05:55.1]} 23. Nf6+ {[%clk 0:05:38.1]} 23... Qxf6 {[%clk 0:05:17]} 24. Qd2 {[%clk 0:05:34.2]} 24... Bb5 {[%clk 0:04:51.3]} 25. b3 {[%clk 0:05:28.6]} 25... Re8 {[%clk 0:04:41.5]} 26. Rfe1 {[%clk 0:05:19.4]} 26... Re2 {[%clk 0:04:14.7]} 27. Rxe2 {[%clk 0:05:08.6]} 27... dxe2 {[%clk 0:04:05.2]} 28. a4 {[%clk 0:05:06.8]} 28... Qxa1+ {[%clk 0:03:55]} 0-1

[Event "Live Chess"]
[Site "Chess.com"]
[Date "2011.01.02"]
[Round "-"]
[White "hipposcottimus"]
[Black "Midelt-Ikhramjioun"]
[Result "1-0"]
[CurrentPosition "r1bq1r2/pp3p1p/2p3pk/4PP2/2B1Q3/8/PBP3PP/R4RK1 b - -"]
[Timezone "UTC"]
[ECO "C50"]
[ECOUrl "https://www.chess.com/openings/Italian-Game-Hungarian-Defense-4.d4-exd4-5.Nxd4"]
[UTCDate "2011.01.02"]
[UTCTime "20:31:53"]
[WhiteElo "1381"]
[BlackElo "1400"]
[TimeControl "600+2"]
[Termination "hipposcottimus won by resignation"]
[StartTime "20:31:53"]
[EndDate "2011.01.02"]
[EndTime "20:39:13"]
[Link "https://www.chess.com/game/live/83565051"]

1. e4 {[%clk 0:10:00]} 1... e5 {[%clk 0:10:00]} 2. Nf3 {[%clk 0:10:00]} 2... Nc6 {[%clk 0:09:56.1]} 3. Bc4 {[%clk 0:10:00.6]} 3... Be7 {[%clk 0:09:53.4]} 4. d4 {[%clk 0:09:58.6]} 4... exd4 {[%clk 0:09:52.3]} 5. Nxd4 {[%clk 0:09:59.4]} 5... Nf6 {[%clk 0:09:48.3]} 6. Nc3 {[%clk 0:09:57.7]} 6... O-O {[%clk 0:09:38.7]} 7. O-O {[%clk 0:09:57.1]} 7... Ne5 {[%clk 0:09:34.8]} 8. Bb3 {[%clk 0:09:52.1]} 8... Bb4 {[%clk 0:09:24.5]} 9. f4 {[%clk 0:09:40.6]} 9... Neg4 {[%clk 0:08:47.6]} 10. e5 {[%clk 0:09:16.4]} 10... Bxc3 {[%clk 0:08:38.5]} 11. bxc3 {[%clk 0:09:04.7]} 11... Ne4 {[%clk 0:08:29.6]} 12. Qxg4 {[%clk 0:08:56.4]} 12... Nxc3 {[%clk 0:08:28.2]} 13. Bb2 {[%clk 0:08:37]} 13... Ne4 {[%clk 0:08:16.1]} 14. Nf5 {[%clk 0:08:34.6]} 14... g6 {[%clk 0:08:10.5]} 15. Nh6+ {[%clk 0:07:50.4]} 15... Kg7 {[%clk 0:08:06.4]} 16. f5 {[%clk 0:07:43.1]} 16... Kxh6 {[%clk 0:07:38.2]} 17. Qxe4 {[%clk 0:07:25.4]} 17... d5 {[%clk 0:07:34.1]} 18. Bxd5 {[%clk 0:06:47.4]} 18... c6 {[%clk 0:07:33.1]} 19. Bc4 {[%clk 0:06:30.9]} 1-0

[Event "Live Chess"]
[Site "Chess.com"]
[Date "2011.01.02"]
[Round "-"]
[White "hipposcottimus"]
[Black "Covkid"]
[Result "1-0"]
[CurrentPosition "8/1Q4pk/p1p4p/3p4/8/8/q5PP/6NK b - -"]
[Timezone "UTC"]
[ECO "C00"]
[ECOUrl "https://www.chess.com/openings/French-Defense-Steiner-Variation-2...d5-3.cxd5-exd5"]
[UTCDate "2011.01.02"]
[UTCTime "20:07:38"]
[WhiteElo "1381"]
[BlackElo "1279"]
[TimeControl "600"]
[Termination "hipposcottimus won on time"]
[StartTime "20:07:38"]
[EndDate "2011.01.02"]
[EndTime "20:24:49"]
[Link "https://www.chess.com/game/live/83558561"]

1. e4 {[%clk 0:10:00]} 1... e6 {[%clk 0:10:00]} 2. c4 {[%clk 0:09:57.4]} 2... d5 {[%clk 0:09:37.3]} 3. cxd5 {[%clk 0:09:50.8]} 3... exd5 {[%clk 0:09:35.2]} 4. e5 {[%clk 0:09:48.6]} 4... a6 {[%clk 0:09:02.3]} 5. d4 {[%clk 0:09:41.9]} 5... Nc6 {[%clk 0:09:00.1]} 6. Nc3 {[%clk 0:09:37]} 6... Bb4 {[%clk 0:08:54.9]} 7. Bd2 {[%clk 0:09:29.3]} 7... Nxd4 {[%clk 0:08:50.2]} 8. Nce2 {[%clk 0:09:20.4]} 8... Bxd2+ {[%clk 0:08:43]} 9. Qxd2 {[%clk 0:09:18.1]} 9... Nxe2 {[%clk 0:08:29.7]} 10. Bxe2 {[%clk 0:09:17.6]} 10... Ne7 {[%clk 0:08:26.3]} 11. Nf3 {[%clk 0:09:15.8]} 11... O-O {[%clk 0:08:21.3]} 12. O-O {[%clk 0:09:13.8]} 12... Bg4 {[%clk 0:08:12.7]} 13. Ng5 {[%clk 0:08:54.9]} 13... Bxe2 {[%clk 0:08:05.6]} 14. Qxe2 {[%clk 0:08:54.6]} 14... h6 {[%clk 0:07:48.4]} 15. Nh3 {[%clk 0:08:39.8]} 15... Re8 {[%clk 0:07:34.5]} 16. f4 {[%clk 0:08:31.7]} 16... Ng6 {[%clk 0:07:24.8]} 17. Rad1 {[%clk 0:08:12.8]} 17... c6 {[%clk 0:07:22.6]} 18. Qd3 {[%clk 0:08:04.5]} 18... Rb8 {[%clk 0:06:44.9]} 19. Rfe1 {[%clk 0:07:55.2]} 19... Qb6+ {[%clk 0:06:01.6]} 20. Kh1 {[%clk 0:07:43.5]} 20... Qxb2 {[%clk 0:05:59.9]} 21. Rd2 {[%clk 0:07:40.3]} 21... Qb6 {[%clk 0:05:28.4]} 22. e6 {[%clk 0:07:26.8]} 22... Qc7 {[%clk 0:04:33]} 23. exf7+ {[%clk 0:06:39.6]} 23... Qxf7 {[%clk 0:04:28.3]} 24. Rf1 {[%clk 0:06:38.2]} 24... Re4 {[%clk 0:04:00]} 25. f5 {[%clk 0:06:31.5]} 25... Ne5 {[%clk 0:03:57]} 26. Qg3 {[%clk 0:06:03.9]} 26... Re8 {[%clk 0:03:36.9]} 27. f6 {[%clk 0:05:55.7]} 27... Rg4 {[%clk 0:00:48.5]} 28. Qe3 {[%clk 0:04:09.7]} 28... Rg6 {[%clk 0:00:42.4]} 29. Rdf2 {[%clk 0:03:57.4]} 29... Rxf6 {[%clk 0:00:35.4]} 30. Qg3 {[%clk 0:03:49.2]} 30... Rxf2 {[%clk 0:00:30.2]} 31. Rxf2 {[%clk 0:03:47.6]} 31... Qe7 {[%clk 0:00:24.9]} 32. Re2 {[%clk 0:03:30.5]} 32... Qb4 {[%clk 0:00:17.3]} 33. Rxe5 {[%clk 0:03:23.6]} 33... Qb1+ {[%clk 0:00:07.6]} 34. Ng1 {[%clk 0:03:20.6]} 34... Rxe5 {[%clk 0:00:02.8]} 35. Qxe5 {[%clk 0:03:16.5]} 35... Qxa2 {[%clk 0:00:01.7]} 36. Qb8+ {[%clk 0:03:10.4]} 36... Kh7 {[%clk 0:00:00.3]} 37. Qxb7 {[%clk 0:03:07.8]} 1-0

[Event "Live Chess"]
[Site "Chess.com"]
[Date "2011.01.02"]
[Round "-"]
[White "wacv"]
[Black "hipposcottimus"]
[Result "1-0"]
[CurrentPosition "r3R1kr/p1p2Np1/2Q3P1/8/2BP1nbp/8/PPP2P1q/R4K2 b - -"]
[Timezone "UTC"]
[ECO "C55"]
[ECOUrl "https://www.chess.com/openings/Italian-Game-Two-Knights-Open"]
[UTCDate "2011.01.02"]
[UTCTime "03:58:06"]
[WhiteElo "1393"]
[BlackElo "1381"]
[TimeControl "600"]
[Termination "wacv won - game abandoned"]
[StartTime "03:58:06"]
[EndDate "2011.01.02"]
[EndTime "04:04:32"]
[Link "https://www.chess.com/game/live/83345535"]

1. e4 {[%clk 0:10:00]} 1... e5 {[%clk 0:10:00]} 2. Nf3 {[%clk 0:09:54.7]} 2... Nc6 {[%clk 0:09:57.8]} 3. Bc4 {[%clk 0:09:51.7]} 3... Nf6 {[%clk 0:09:56.6]} 4. d4 {[%clk 0:09:50.3]} 4... d5 {[%clk 0:09:52.5]} 5. exd5 {[%clk 0:09:47.7]} 5... e4 {[%clk 0:09:48.7]} 6. Ne5 {[%clk 0:09:34.7]} 6... Nxd5 {[%clk 0:09:38.7]} 7. Nxc6 {[%clk 0:09:30.1]} 7... bxc6 {[%clk 0:09:35.8]} 8. O-O {[%clk 0:09:28.6]} 8... Bd6 {[%clk 0:09:31.1]} 9. Re1 {[%clk 0:09:26.3]} 9... Bf5 {[%clk 0:09:24.6]} 10. g4 {[%clk 0:09:22.9]} 10... Bg6 {[%clk 0:09:15.9]} 11. Nd2 {[%clk 0:09:16.1]} 11... Qh4 {[%clk 0:09:10.5]} 12. Nxe4 {[%clk 0:08:57.4]} 12... Qxh2+ {[%clk 0:09:04.2]} 13. Kf1 {[%clk 0:08:56.1]} 13... Bf4 {[%clk 0:08:52.3]} 14. Nf6+ {[%clk 0:08:31.8]} 14... Kf8 {[%clk 0:08:28.3]} 15. Nd7+ {[%clk 0:08:26.8]} 15... Kg8 {[%clk 0:08:23.9]} 16. Bxf4 {[%clk 0:08:09.3]} 16... Nxf4 {[%clk 0:08:19.1]} 17. Qf3 {[%clk 0:08:02.6]} 17... h5 {[%clk 0:07:50.5]} 18. g5 {[%clk 0:07:54.7]} 18... h4 {[%clk 0:07:39.5]} 19. Qxc6 {[%clk 0:07:52.1]} 19... Kh7 {[%clk 0:07:29.6]} 20. Ne5 {[%clk 0:07:40.3]} 20... Bh5 {[%clk 0:07:08.4]} 21. Nxf7 {[%clk 0:07:23.6]} 21... Bg4 {[%clk 0:06:43.6]} 22. g6+ {[%clk 0:07:14.3]} 22... Kg8 {[%clk 0:06:35.6]} 23. Re8+ {[%clk 0:07:10.6]} 1-0

[Event "Live Chess"]
[Site "Chess.com"]
[Date "2011.01.02"]
[Round "-"]
[White "hipposcottimus"]
[Black "betqil"]
[Result "1-0"]
[CurrentPosition "3r2r1/p1Qk1pNp/1p4q1/3P4/1P3B2/8/1P3PPP/6K1 b - -"]
[Timezone "UTC"]
[ECO "B01"]
[ECOUrl "https://www.chess.com/openings/Scandinavian-Defense-Mieses-Kotrc-Variation-3.Nc3-Qe5-4.Be2"]
[UTCDate "2011.01.02"]
[UTCTime "03:39:34"]
[WhiteElo "1389"]
[BlackElo "1279"]
[TimeControl "600+5"]
[Termination "hipposcottimus won by checkmate"]
[StartTime "03:39:34"]
[EndDate "2011.01.02"]
[EndTime "03:51:10"]
[Link "https://www.chess.com/game/live/83342577"]

1. e4 {[%clk 0:10:00]} 1... d5 {[%clk 0:10:00]} 2. exd5 {[%clk 0:09:59.5]} 2... Qxd5 {[%clk 0:10:03.4]} 3. Nc3 {[%clk 0:10:01.4]} 3... Qe5+ {[%clk 0:10:03.9]} 4. Be2 {[%clk 0:10:02.4]} 4... Bf5 {[%clk 0:10:07.1]} 5. d4 {[%clk 0:10:04.8]} 5... Qf6 {[%clk 0:10:02.3]} 6. Bf3 {[%clk 0:10:05.5]} 6... Nc6 {[%clk 0:10:00]} 7. Nge2 {[%clk 0:10:09.2]} 7... Rd8 {[%clk 0:10:00.5]} 8. d5 {[%clk 0:10:10]} 8... Nb4 {[%clk 0:09:57.6]} 9. O-O {[%clk 0:09:56]} 9... Nxc2 {[%clk 0:09:55.3]} 10. Rb1 {[%clk 0:09:42.2]} 10... Nb4 {[%clk 0:09:15.9]} 11. a3 {[%clk 0:09:43.7]} 11... Bxb1 {[%clk 0:08:53.7]} 12. axb4 {[%clk 0:09:33.5]} 12... Qg6 {[%clk 0:08:28.9]} 13. Nf4 {[%clk 0:09:32.4]} 13... Qf5 {[%clk 0:08:21]} 14. Re1 {[%clk 0:09:31.3]} 14... Bc2 {[%clk 0:08:17.4]} 15. Qd4 {[%clk 0:08:54.7]} 15... b6 {[%clk 0:08:08.4]} 16. Be4 {[%clk 0:08:46.5]} 16... Bxe4 {[%clk 0:08:09.8]} 17. Nxe4 {[%clk 0:08:50.6]} 17... e5 {[%clk 0:07:55.2]} 18. Ng3 {[%clk 0:08:34.1]} 18... Qf6 {[%clk 0:07:15]} 19. Rxe5+ {[%clk 0:08:32.4]} 19... Be7 {[%clk 0:07:17.8]} 20. Nfh5 {[%clk 0:08:24.9]} 20... Qd6 {[%clk 0:07:13.1]} 21. Nxg7+ {[%clk 0:08:13.2]} 21... Kf8 {[%clk 0:07:12.2]} 22. N3f5 {[%clk 0:08:11]} 22... Qg6 {[%clk 0:06:17.3]} 23. Rxe7 {[%clk 0:07:53.5]} 23... Nxe7 {[%clk 0:05:52.4]} 24. Nxe7 {[%clk 0:07:52.2]} 24... Kxe7 {[%clk 0:05:51.9]} 25. Qe5+ {[%clk 0:07:50.5]} 25... Kd7 {[%clk 0:05:41.6]} 26. Bf4 {[%clk 0:07:30.2]} 26... Rhg8 {[%clk 0:05:35.3]} 27. Qxc7# {[%clk 0:07:27.9]} 1-0

[Event "Live Chess"]
[Site "Chess.com"]
[Date "2011.01.02"]
[Round "-"]
[White "betqil"]
[Black "hipposcottimus"]
[Result "0-1"]
[CurrentPosition "8/5kpp/4p3/4P3/8/2rb2P1/p4PKP/8 w - -"]
[Timezone "UTC"]
[ECO "D00"]
[ECOUrl "https://www.chess.com/openings/Queens-Pawn-Opening-Accelerated-London-System"]
[UTCDate "2011.01.02"]
[UTCTime "03:20:37"]
[WhiteElo "1285"]
[BlackElo "1383"]
[TimeControl "600+5"]
[Termination "hipposcottimus won by resignation"]
[StartTime "03:20:37"]
[EndDate "2011.01.02"]
[EndTime "03:36:40"]
[Link "https://www.chess.com/game/live/83338784"]

1. d4 {[%clk 0:10:00]} 1... d5 {[%clk 0:10:00]} 2. Bf4 {[%clk 0:10:00.9]} 2... Nc6 {[%clk 0:10:02.7]} 3. Nc3 {[%clk 0:10:03.8]} 3... e5 {[%clk 0:09:54.3]} 4. dxe5 {[%clk 0:10:03.4]} 4... Bb4 {[%clk 0:09:56.6]} 5. Qd3 {[%clk 0:09:39.5]} 5... Be6 {[%clk 0:09:55.3]} 6. a3 {[%clk 0:09:32]} 6... Ba5 {[%clk 0:09:55.9]} 7. e3 {[%clk 0:09:26.6]} 7... Nge7 {[%clk 0:09:51.5]} 8. b4 {[%clk 0:09:26]} 8... Nxb4 {[%clk 0:09:53.3]} 9. axb4 {[%clk 0:09:27.5]} 9... Bxb4 {[%clk 0:09:57.4]} 10. Qb5+ {[%clk 0:09:30.2]} 10... Nc6 {[%clk 0:09:58.6]} 11. Ne2 {[%clk 0:09:25.1]} 11... O-O {[%clk 0:09:57.9]} 12. Qxb7 {[%clk 0:08:46.1]} 12... Qd7 {[%clk 0:09:53.2]} 13. g3 {[%clk 0:07:33.3]} 13... Rab8 {[%clk 0:09:25.3]} 14. Qa6 {[%clk 0:07:29.3]} 14... d4 {[%clk 0:09:23.8]} 15. Bg2 {[%clk 0:07:19.2]} 15... Rb6 {[%clk 0:09:23.6]} 16. Qd3 {[%clk 0:07:05.7]} 16... Bf5 {[%clk 0:09:18]} 17. Qd2 {[%clk 0:05:58.3]} 17... dxc3 {[%clk 0:08:51.2]} 18. Qxd7 {[%clk 0:05:51.8]} 18... Bxd7 {[%clk 0:08:54.7]} 19. Rd1 {[%clk 0:05:52.4]} 19... Bf5 {[%clk 0:08:54.6]} 20. O-O {[%clk 0:05:30.2]} 20... Bxc2 {[%clk 0:08:53.8]} 21. Rc1 {[%clk 0:05:32.5]} 21... Bd3 {[%clk 0:08:47.5]} 22. Rfe1 {[%clk 0:05:30.7]} 22... c2 {[%clk 0:08:47.3]} 23. Bxc6 {[%clk 0:05:19.5]} 23... Bxe1 {[%clk 0:08:42.3]} 24. Ba4 {[%clk 0:05:07.6]} 24... Bxe2 {[%clk 0:08:40.8]} 25. Rxe1 {[%clk 0:05:01.3]} 25... Bd3 {[%clk 0:08:36.1]} 26. e4 {[%clk 0:04:47.8]} 26... Rb1 {[%clk 0:08:36.5]} 27. Bc1 {[%clk 0:04:50.1]} 27... Rfb8 {[%clk 0:08:35.1]} 28. Bxc2 {[%clk 0:04:48.4]} 28... Bxc2 {[%clk 0:08:36.4]} 29. Kg2 {[%clk 0:04:46.6]} 29... a5 {[%clk 0:08:39.8]} 30. Bd2 {[%clk 0:04:25.1]} 30... a4 {[%clk 0:08:37.1]} 31. Rxb1 {[%clk 0:04:21.5]} 31... Rxb1 {[%clk 0:08:39.1]} 32. Be3 {[%clk 0:04:10.2]} 32... a3 {[%clk 0:08:22.4]} 33. Bd4 {[%clk 0:04:11.5]} 33... a2 {[%clk 0:08:25.9]} 34. Bc3 {[%clk 0:04:12.8]} 34... c5 {[%clk 0:08:25]} 35. e6 {[%clk 0:04:00.8]} 35... fxe6 {[%clk 0:08:23.9]} 36. Be5 {[%clk 0:03:56.8]} 36... c4 {[%clk 0:08:20]} 37. Bd4 {[%clk 0:03:44]} 37... Rb3 {[%clk 0:08:19.1]} 38. Ba1 {[%clk 0:03:44.1]} 38... Rb1 {[%clk 0:08:22.6]} 39. Bd4 {[%clk 0:03:42.9]} 39... Kf7 {[%clk 0:08:24.5]} 40. Be5 {[%clk 0:03:42.3]} 40... Bd3 {[%clk 0:08:27.3]} 41. Bd4 {[%clk 0:03:35]} 41... Rc1 {[%clk 0:08:28.9]} 42. Bb2 {[%clk 0:03:23.3]} 42... Rc2 {[%clk 0:08:30.4]} 43. Ba1 {[%clk 0:03:26.4]} 43... Rc1 {[%clk 0:08:34.5]} 44. Bb2 {[%clk 0:03:27.6]} 44... Rc2 {[%clk 0:08:36.7]} 45. Ba1 {[%clk 0:03:29.3]} 45... c3 {[%clk 0:08:40.8]} 46. e5 {[%clk 0:03:23.4]} 46... Rc1 {[%clk 0:08:44]} 47. Bxc3 {[%clk 0:03:22.1]} 47... Rxc3 {[%clk 0:08:48.6]} 0-1

[Event "Live Chess"]
[Site "Chess.com"]
[Date "2011.01.02"]
[Round "-"]
[White "hipposcottimus"]
[Black "Slagit"]
[Result "0-1"]
[CurrentPosition "rn6/ppk2pQp/2q5/2B5/8/4R3/PPP2PPP/RN1r2K1 w - -"]
[Timezone "UTC"]
[ECO "C41"]
[ECOUrl "https://www.chess.com/openings/Philidor-Defense-Exchange-Variation-4.Nxd4"]
[UTCDate "2011.01.02"]
[UTCTime "03:16:03"]
[WhiteElo "1377"]
[BlackElo "925"]
[TimeControl "600"]
[Termination "Slagit won by resignation"]
[StartTime "03:16:03"]
[EndDate "2011.01.02"]
[EndTime "03:19:44"]
[Link "https://www.chess.com/game/live/83337971"]

1. e4 {[%clk 0:10:00]} 1... e5 {[%clk 0:10:00]} 2. Nf3 {[%clk 0:09:57.3]} 2... d6 {[%clk 0:09:57.6]} 3. d4 {[%clk 0:09:55.6]} 3... exd4 {[%clk 0:09:49.7]} 4. Nxd4 {[%clk 0:09:51.4]} 4... Qe7 {[%clk 0:09:44.7]} 5. Bd3 {[%clk 0:09:47.3]} 5... c5 {[%clk 0:09:42.3]} 6. Nf5 {[%clk 0:09:44.4]} 6... Bxf5 {[%clk 0:09:39.1]} 7. O-O {[%clk 0:09:40.2]} 7... Bxe4 {[%clk 0:09:35.7]} 8. Bxe4 {[%clk 0:09:34.1]} 8... Qc7 {[%clk 0:09:14.8]} 9. Bf4 {[%clk 0:09:24.2]} 9... Nf6 {[%clk 0:09:10.7]} 10. Re1 {[%clk 0:09:19.4]} 10... Nxe4 {[%clk 0:09:05.2]} 11. Rxe4+ {[%clk 0:09:12.7]} 11... Be7 {[%clk 0:09:02.5]} 12. Bxd6 {[%clk 0:09:07.6]} 12... Qc6 {[%clk 0:08:55.4]} 13. Rxe7+ {[%clk 0:09:05.4]} 13... Kd8 {[%clk 0:08:47.3]} 14. Bxc5+ {[%clk 0:08:59.8]} 14... Kc8 {[%clk 0:08:38.6]} 15. Re3 {[%clk 0:08:33.7]} 15... Rd8 {[%clk 0:08:33.8]} 16. Qg4+ {[%clk 0:08:31]} 16... Kc7 {[%clk 0:08:19.5]} 17. Qxg7 {[%clk 0:08:10.9]} 17... Rd1+ {[%clk 0:08:16.6]} 0-1